fUSD/lending_fUSD_20250301
["ID","MTS","AMOUNT","RATE_DAILY","PERIOD"]
[354942667,1740837035888,-661.57,0.00027397,2]
[354942668,1740837035897,-604.17,0.00027397,2]
[354942669,1740837035907,-3738.75,0.00027397,2]
[354942670,1740837035917,-584.91,0.00027397,2]
[354942671,1740837035927,-500.0,0.00027397,2]
[354942672,1740837035936,-1152.8,0.00027397,2]
[354942673,1740837035946,-500.0,0.00027397,2]
[354942674,1740837035956,-510.91,0.00027397,2]
[354942675,1740837035967,-531.30790953,0.00027397,2]
[354942676,1740837035976,-804.77,0.00027397,2]
[354942677,1740837035987,-874.02,0.00027397,2]
[354942678,1740837035996,-500.0,0.00027397,2]
[354942679,1740837036006,-500.0,0.00027397,2]
[354942680,1740837036016,-531.45618959,0.00027397,2]
[354942681,1740837036026,-1808.79,0.00027397,2]
[354942682,1740837036035,-866.03,0.00027397,2]
[354942683,1740837036045,-500.0,0.00027397,2]
[354942684,1740837036055,-1084.21,0.00027397,2]
[354942685,1740837036064,-595.31,0.00027397,2]
[354942686,1740837036074,-500.0,0.00027397,2]
[354942687,1740837036085,-646.65,0.00027397,2]
[354942688,1740837036095,-1662.16,0.00027397,2]
[354942689,1740837036105,-500.0,0.00027397,2]
[354942690,1740837036115,-967.87,0.00027397,2]
[354942691,1740837036125,-973.01,0.00027397,2]
[354942692,1740837036135,-500.0,0.00027397,2]
[354942693,1740837036145,-641.96,0.00027397,2]
[354942694,1740837036154,-500.0,0.00027397,2]
[354942695,1740837036164,-6013.84,0.00027397,2]
[354942696,1740837036174,-1416.64,0.00027397,2]
[354942697,1740837036184,-1109.69,0.00027397,2]
[354942698,1740837036194,-500.0,0.00027397,2]
[354942699,1740837036208,-1080.78,0.00027397,2]
[354942700,1740837036218,-500.0,0.00027397,2]
[354942701,1740837036227,-500.0,0.00027397,2]
[354942702,1740837036238,-1683.67,0.00027397,2]
[354942703,1740837036248,-500.0,0.00027397,2]
[354942704,1740837036257,-500.0,0.00027397,2]
[354942705,1740837036267,-832.98,0.00027397,2]
[354942706,1740837036279,-675.11,0.00027397,2]
[354942707,1740837036289,-3024.85,0.00027397,2]
[354942708,1740837036299,-788.95,0.00027397,2]
[354942709,1740837036309,-1266.03,0.00027397,2]
[354942710,1740837036319,-500.0,0.00027397,2]
[354942711,1740837036328,-1719.43,0.00027397,2]
[354942712,1740837036341,-1677.28,0.00027397,2]
[354942713,1740837036351,-854.24,0.00027397,2]
[354942714,1740837036360,-500.0,0.00027397,2]
[354942715,1740837036370,-500.0,0.00027397,2]
[354942716,1740837036380,-500.0,0.00027397,2]
[354942717,1740837036390,-757.42,0.00027397,2]
[354942718,1740837036401,-727.36,0.00027397,2]
[354942719,1740837036410,-500.0,0.00027397,2]
[354942720,1740837036420,-10526.44,0.00027397,2]
[354942721,1740837036430,-919.0,0.00027397,2]
[354942722,1740837036439,-500.0,0.00027397,2]
[354942723,1740837036449,-2791.1,0.00027397,2]
[354942724,1740837036458,-526.90937477,0.00027397,2]
[354942725,1740837036468,-688.49,0.00027397,2]
[354942726,1740837036478,-500.0,0.00027397,2]
[354942727,1740837036488,-670.91,0.00027397,2]
[354942728,1740837036498,-694.87,0.00027397,2]
[354942729,1740837036507,-273.16645769,0.00027397,2]
[354942730,1740837036517,-543.62467254,0.00027397,2]
[354942731,1740837036527,-602.65,0.00027397,2]
[354942732,1740837036537,-1031.26,0.00027397,2]
[354942733,1740837036546,-1299.35,0.00027397,2]
[354942734,1740837036556,-378.3695474,0.00027397,2]
[354942735,1740837036566,-2839.6,0.00027397,2]
[354942736,1740837036576,-547.26,0.00027397,2]
[354942737,1740837036588,-3116.980899,0.00027397,2]
[354942738,1740837036598,-1248.42,0.00027397,2]
[354942739,1740837036607,-966.63,0.00027397,2]
[354942740,1740837036617,-1885.7,0.00027397,2]
[354942741,1740837036627,-4191.37,0.00027397,2]
[354942742,1740837036637,-500.0,0.00027397,2]
[354942743,1740837036647,-1929.3,0.00027397,2]
[354942744,1740837036656,-2000.11,0.00027397,2]
[354942745,1740837036666,-950.21,0.00027397,2]
[354942746,1740837036676,-153.088695,0.00027397,2]
[354942747,1740837036687,-2227.14,0.00027397,2]
[354942748,1740837036696,-500.0,0.00027397,2]
[354942749,1740837036706,-500.0,0.00027397,2]
[354942750,1740837036715,-500.0,0.00027397,2]
[354942751,1740837036724,-1168.48,0.00027397,2]
[354942752,1740837036734,-500.0,0.00027397,2]
[354942753,1740837036743,-1753.64,0.00027397,2]
[354942754,1740837036753,-300.0,0.00027397,2]
[354942755,1740837036763,-500.0,0.00027397,2]
[354942756,1740837036773,-1511.32,0.00027397,2]
[354942757,1740837036783,-670.41,0.00027397,2]
[354942758,1740837036792,-773.42,0.00027397,2]
[354942759,1740837036802,-519.43951174,0.00027397,2]
[354942760,1740837036811,-500.0,0.00027397,2]
[354942761,1740837036822,-500.0,0.00027397,2]
[354942762,1740837036831,-150.369306,0.00027397,2]
[354942763,1740837036842,-500.0,0.00027397,2]
[354942764,1740837036851,-749.72,0.00027397,2]
[354942765,1740837036861,-500.0,0.00027397,2]
[354942766,1740837036870,-620.95,0.00027397,2]
[354942767,1740837036879,-1048.27,0.00027397,2]
[354942768,1740837036888,-500.0,0.00027397,2]
[354942769,1740837036897,-2279.4,0.00027397,2]
[354942770,1740837036906,-1287.75,0.00027397,2]
[354942771,1740837036915,-500.0,0.00027397,2]
[354942772,1740837036926,-1039.41,0.00027397,2]
[354942773,1740837036935,-671.92,0.00027397,2]
[354942774,1740837036944,-500.0,0.00027397,2]
[354942775,1740837036953,-500.0,0.00027397,2]
[354942776,1740837036962,-1993.97,0.00027397,2]
[354942777,1740837036971,-7410.28,0.00027397,2]
[354942778,1740837036981,-1828.3,0.00027397,2]
[354942779,1740837036991,-695.42,0.00027397,2]
[354942780,1740837037000,-500.0,0.00027397,2]
[354942781,1740837037010,-1750.88,0.00027397,2]
[354942782,1740837037020,-500.0,0.00027397,2]
[354942783,1740837037029,-1512.96,0.00027397,2]
[354942784,1740837037039,-1368.29,0.00027397,2]
[354942785,1740837037048,-500.0,0.00027397,2]
[354942786,1740837037058,-500.0,0.00027397,2]
[354942787,1740837037068,-870.06,0.00027397,2]
[354942788,1740837037078,-645.31,0.00027397,2]
[354942789,1740837037090,-4921.22,0.00027397,2]
[354942790,1740837037100,-500.0,0.00027397,2]
[354942791,1740837037110,-2404.024242,0.00027397,2]
[354942792,1740837037120,-1150.93,0.00027397,2]
[354942793,1740837037130,-3771.97,0.00027397,2]
[354942794,1740837037140,-1013.97,0.00027397,2]
[354942795,1740837037150,-2462.92,0.00027397,2]
[354942796,1740837037160,-2383.5,0.00027397,2]
[354942797,1740837037170,-25606.39,0.00027397,2]
[354942798,1740837037180,-539.58,0.00027397,2]
[354942799,1740837037189,-1158.23,0.00027397,2]
[354942800,1740837037201,-2295.26,0.00027397,2]
[354942801,1740837037212,-500.0,0.00027397,2]
[354942802,1740837037221,-1333.37,0.00027397,2]
[354942803,1740837037231,-500.0,0.00027397,2]
[354942804,1740837037242,-1575.35,0.00027397,2]
[354942805,1740837037252,-500.0,0.00027397,2]
[354942806,1740837037261,-697.85,0.00027397,2]
[354942807,1740837037270,-500.0,0.00027397,2]
[354942808,1740837037283,-633.24,0.00027397,2]
[354942809,1740837037293,-500.0,0.00027397,2]
[354942810,1740837037302,-500.0,0.00027397,2]
[354942811,1740837037312,-693.59,0.00027397,2]
[354942812,1740837037322,-11645.74,0.00027397,2]
[354942813,1740837037331,-1426.65,0.00027397,2]
[354942814,1740837037342,-500.0,0.00027397,2]
[354942815,1740837037352,-526.19902134,0.00027397,2]
[354942816,1740837037362,-597.32,0.00027397,2]
[354942817,1740837037371,-500.48,0.00027397,2]
[354942818,1740837037381,-500.0,0.00027397,2]
[354942819,1740837037390,-517.02,0.00027397,2]
[354942820,1740837037400,-528.55,0.00027397,2]
[354942821,1740837037410,-500.0,0.00027397,2]
[354942822,1740837037420,-768.23,0.00027397,2]
[354942823,1740837037429,-2870.53,0.00027397,2]
[354942824,1740837037439,-249.88388092,0.00027397,2]
[354942825,1740837037449,-500.0,0.00027397,2]
[354942826,1740837037458,-1385.77,0.00027397,2]
[354942827,1740837037469,-500.0,0.00027397,2]
[354942828,1740837037478,-500.0,0.00027397,2]
[354942829,1740837037488,-2062.39,0.00027397,2]
[354942830,1740837037498,-526.44340773,0.00027397,2]
[354942831,1740837037508,-500.0,0.00027397,2]
[354942832,1740837037517,-2244.57,0.00027397,2]
[354942833,1740837037527,-500.0,0.00027397,2]
[354942834,1740837037537,-597.25,0.00027397,2]
[354942835,1740837037547,-1674.35,0.00027397,2]
[354942836,1740837037557,-2420.97,0.00027397,2]
[354942837,1740837037566,-500.0,0.00027397,2]
[354942838,1740837037576,-1162.29,0.00027397,2]
[354942839,1740837037586,-780.44,0.00027397,2]
[354942840,1740837037596,-2378.17,0.00027397,2]
[354942841,1740837037606,-2347.34,0.00027397,2]
[354942842,1740837037616,-569.29,0.00027397,2]
[354942843,1740837037625,-737.79,0.00027397,2]
[354942844,1740837037635,-500.0,0.00027397,2]
[354942845,1740837037644,-1683.26,0.00027397,2]
[354942846,1740837037654,-1938.25,0.00027397,2]
[354942847,1740837037663,-1024.8,0.00027397,2]
[354942848,1740837037673,-835.7,0.00027397,2]
[354942849,1740837037683,-2323.29,0.00027397,2]
[354942850,1740837037692,-545.91595651,0.00027397,2]
[354942851,1740837037702,-650.28,0.00027397,2]
[354942852,1740837037712,-621.72,0.00027397,2]
[354942853,1740837037722,-679.03,0.00027397,2]
[354942854,1740837037731,-500.0,0.00027397,2]
[354942855,1740837037740,-281.42193905,0.00027397,2]
[354942856,1740837037750,-1172.44,0.00027397,2]
[354942857,1740837037759,-1307.83,0.00027397,2]
[354942858,1740837037768,-500.0,0.00027397,2]
[354942859,1740837037778,-630.27438226,0.00027397,2]
[354942860,1740837037789,-502.78,0.00027397,2]
[354942861,1740837037798,-1214.43,0.00027397,2]
[354942862,1740837037807,-2311.01,0.00027397,2]
[354942863,1740837037817,-500.0,0.00027397,2]
[354942864,1740837037827,-3299.02,0.00027397,2]
[354942865,1740837037838,-532.4,0.00027397,2]
[354942866,1740837037847,-500.0,0.00027397,120]
[354942867,1740837037856,-624.45,0.00027397,2]
[354942868,1740837037866,-6050.15,0.00027397,2]
[354942869,1740837037875,-500.0,0.00027397,2]
[354942871,1740837037886,-753.96,0.00027397,2]
[354942873,1740837037895,-774.49,0.00027397,2]
[354942874,1740837037905,-1708.82,0.00027397,2]
[354942875,1740837037914,-1228.58,0.00027397,2]
[354942876,1740837037924,-2558.94,0.00027397,2]
[354942877,1740837037933,-1401.5,0.00027397,2]
[354942879,1740837037942,-500.0,0.00027397,2]
[354942881,1740837037952,-1258.18,0.00027397,2]
[354942882,1740837037961,-652.46,0.00027397,2]
[354942884,1740837037971,-500.0,0.00027397,2]
[354942886,1740837037980,-1051.41,0.00027397,2]
[354942888,1740837037989,-660.0,0.00027397,2]
[354942890,1740837037999,-28131.56,0.00027397,2]
[354942893,1740837038008,-500.0,0.00027397,2]
[354942896,1740837038017,-943.42,0.00027397,2]
[354942897,1740837038028,-438.80287126,0.00027397,2]
[354942898,1740837038037,-526.32,0.00027397,2]
[354942899,1740837038047,-500.0,0.00027397,2]
[354942900,1740837038057,-600.97,0.00027397,2]
[354942901,1740837038066,-1381.99,0.00027397,2]
[354942902,1740837038076,-2448.03,0.00027397,2]
[354942903,1740837038085,-524.92688697,0.00027397,2]
[354942904,1740837038095,-721.2,0.00027397,2]
[354942905,1740837038104,-1492.36,0.00027397,2]
[354942906,1740837038114,-1630.27,0.00027397,2]
[354942907,1740837038124,-735.34,0.00027397,2]
[354942908,1740837038133,-500.0,0.00027397,2]
[354942909,1740837038143,-500.0,0.00027397,2]
[354942910,1740837038152,-1366.57,0.00027397,2]
[354942911,1740837038161,-500.0,0.00027397,2]
[354942912,1740837038170,-788.24,0.00027397,2]
[354942913,1740837038180,-500.0,0.00027397,2]
[354942914,1740837038190,-500.0,0.00027397,2]
[354942915,1740837038200,-4953.55,0.00027397,2]
[354942916,1740837038212,-1228.07,0.00027397,2]
[354942917,1740837038222,-1327.19,0.00027397,2]
[354942918,1740837038231,-981.46,0.00027397,2]
[354942919,1740837038243,-500.0,0.00027397,2]
[354942920,1740837038252,-500.0,0.00027397,2]
[354942921,1740837038261,-500.0,0.00027397,2]
[354942922,1740837038271,-500.0,0.00027397,2]
[354942923,1740837038281,-1062.38,0.00027397,2]
[354942924,1740837038291,-879.79,0.00027397,2]
[354942925,1740837038301,-1926.56,0.00027397,2]
[354942926,1740837038310,-500.0,0.00027397,2]
[354942927,1740837038319,-500.0,0.00027397,2]
[354942928,1740837038329,-627.55,0.00027397,2]
[354942929,1740837038339,-588.32,0.00027397,2]
[354942930,1740837038349,-1596.25,0.00027397,2]
[354942931,1740837038358,-500.0,0.00027397,2]
[354942932,1740837038367,-500.0,0.00027397,2]
[354942933,1740837038377,-1054.03,0.00027397,2]
[354942934,1740837038386,-1380.8,0.00027397,2]
[354942935,1740837038396,-720.59,0.00027397,2]
[354942936,1740837038406,-2516.98,0.00027397,2]
[354942937,1740837038415,-757.08,0.00027397,2]
[354942938,1740837038425,-1543.82,0.00027397,2]
[354942939,1740837038435,-500.0,0.00027397,2]
[354942940,1740837038444,-1824.61,0.00027397,2]
[354942941,1740837038454,-1100.73,0.00027397,2]
[354942942,1740837038465,-500.0,0.00027397,2]
[354942943,1740837038474,-500.0,0.00027397,2]
[354942944,1740837038484,-1886.43,0.00027397,2]
[354942945,1740837038496,-773.14,0.00027397,2]
[354942946,1740837038506,-1353.42,0.00027397,2]
[354942947,1740837038515,-500.0,0.00027397,2]
[354942948,1740837038525,-500.0,0.00027397,2]
[354942949,1740837038534,-500.0,0.00027397,2]
[354942950,1740837038732,-1601.4,0.00027397,2]
[354942951,1740837038743,-1630.35,0.00027397,2]
[354942952,1740837038753,-20632.47,0.00027397,2]
[354942953,1740837038763,-500.0,0.00027397,2]
[354942954,1740837038772,-602.26,0.00027397,2]
[354942955,1740837038782,-1705.16,0.00027397,2]
[354942956,1740837038791,-980.78,0.00027397,2]
[354942957,1740837038801,-1138.69,0.00027397,2]
[354942958,1740837038811,-1058.18,0.00027397,2]
[354942959,1740837038820,-500.0,0.00027397,2]
[354942960,1740837038830,-1570.03,0.00027397,2]
[354942961,1740837038840,-500.0,0.00027397,2]
[354942962,1740837038850,-882.45,0.00027397,2]
[354942963,1740837038859,-500.0,0.00027397,2]
[354942964,1740837038869,-500.0,0.00027397,2]
[354942965,1740837038878,-500.0,0.00027397,2]
[354942966,1740837038888,-2279.25,0.00027397,2]
[354942967,1740837038898,-500.0,0.00027397,2]
[354942968,1740837038907,-500.0,0.00027397,2]
[354942969,1740837038918,-500.0,0.00027397,2]
[354942970,1740837038927,-859.16,0.00027397,2]
[354942971,1740837038936,-500.0,0.00027397,2]
[354942972,1740837038946,-554.7,0.00027397,2]
[354942973,1740837038956,-1637.63,0.00027397,2]
[354942974,1740837038965,-500.0,0.00027397,2]
[354942975,1740837038974,-529.27526937,0.00027397,2]
[354942976,1740837038984,-721.91,0.00027397,2]
[354942977,1740837038994,-471.82590161,0.00027397,2]
[354942978,1740837039003,-498.01856718,0.0002742,2]
[354942979,1740837039013,-899.25044041,0.0002742,2]
[354942980,1740837039023,-450.0,0.000275,2]
[354942981,1740837039034,-176.53,0.00027509,2]
[354942982,1740837039044,-1234.59379847,0.00027521,4]
[354942983,1740837039053,-498.01856718,0.00027542,2]
[354942984,1740837039063,-899.25044041,0.00027542,2]
[354942985,1740837039073,-163.69386733,0.00027571,2]
[354942986,1740837039083,-176.53,0.00027647,2]
[354942987,1740837039092,-159.34491104,0.00027654,2]
[354942988,1740837039102,-498.01856718,0.00027665,2]
[354942989,1740837039112,-899.25044041,0.00027665,2]
[354942990,1740837039122,-500.0,0.0002767,2]
[354942991,1740837039131,-1348.99,0.0002767,2]
[354942992,1740837039141,-1153.73,0.0002767,2]
[354942993,1740837039151,-526.91,0.0002767,2]
[354942994,1740837039161,-100000.0,0.00027671,5]
[354942995,1740837039171,-500.0,0.00027671,2]
[354942996,1740837039181,-500.0,0.00027671,2]
[354942997,1740837039192,-500.0,0.00027671,2]
[354942998,1740837039205,-500.0,0.00027671,2]
[354942999,1740837039214,-844.98,0.00027671,2]
[354943000,1740837039224,-500.0,0.00027671,2]
[354943001,1740837039234,-500.0,0.00027671,2]
[354943002,1740837039243,-500.0,0.00027671,2]
[354943003,1740837039253,-540.65710259,0.00027671,2]
[354943004,1740837039263,-711.83,0.00027671,2]
[354943005,1740837039273,-500.0,0.00027671,2]
[354943006,1740837039284,-304.45316586,0.00027671,2]
[354943007,1740837039293,-531.39,0.00027671,2]
[354943008,1740837039303,-500.0,0.00027671,2]
[354943009,1740837039313,-500.0,0.00027671,2]
[354943010,1740837039323,-761.66,0.00027671,2]
[354943011,1740837039332,-184.55592954,0.00027671,2]
[354943012,1740837039343,-710.63,0.00027671,2]
[354943013,1740837039353,-500.0,0.00027671,2]
[354943014,1740837039363,-500.0,0.00027671,2]
[354943015,1740837039373,-500.0,0.00027671,2]
[354943016,1740837039382,-500.0,0.00027671,2]
[354943017,1740837039392,-418.28400275,0.00027671,2]
[354943018,1740837039402,-500.0,0.00027671,2]
[354943019,1740837039411,-539.69,0.00027671,2]
[354943020,1740837039421,-950.95,0.00027671,2]
[354943021,1740837039431,-1029.61,0.00027671,2]
[354943022,1740837039440,-241.56574832,0.00027671,2]
[354943023,1740837039450,-500.0,0.00027671,2]
[354943024,1740837039459,-500.0,0.00027671,2]
[354943025,1740837039468,-500.0,0.00027671,2]
[354943026,1740837039478,-874.24,0.00027671,2]
[354943027,1740837039487,-709.69,0.00027671,2]
[354943028,1740837039496,-933.95,0.00027671,2]
[354943029,1740837039506,-500.0,0.00027671,2]
[354943030,1740837039516,-500.0,0.00027671,2]
[354943031,1740837039525,-500.0,0.00027671,2]
[354943032,1740837039535,-500.0,0.00027671,2]
[354943033,1740837039544,-990.85,0.00027671,2]
[354943034,1740837039553,-500.0,0.00027671,2]
[354943035,1740837039563,-796.72,0.00027671,2]
[354943036,1740837039572,-500.0,0.00027671,2]
[354943037,1740837039582,-1297.58,0.00027671,2]
[354943038,1740837039594,-500.0,0.00027671,2]
[354943039,1740837039603,-500.0,0.00027671,2]
[354943040,1740837039613,-500.0,0.00027671,2]
[354943041,1740837039622,-533.88565329,0.00027671,2]
[354943042,1740837039631,-500.0,0.00027671,2]
[354943043,1740837039641,-763.73,0.00027671,2]
[354943044,1740837039651,-581.75,0.00027671,2]
[354943045,1740837039660,-500.0,0.00027671,2]
[354943046,1740837039670,-500.0,0.00027671,2]
[354943047,1740837039679,-500.0,0.00027671,2]
[354943048,1740837039689,-500.0,0.00027671,2]
[354943049,1740837039698,-298.57628381,0.00027671,2]
[354943050,1740837039708,-871.2,0.00027671,2]
[354943051,1740837039718,-500.0,0.00027671,2]
[354943052,1740837039727,-532.79303157,0.00027671,2]
[354943053,1740837039736,-500.0,0.00027671,2]
[354943054,1740837039746,-500.0,0.00027671,2]
[354943055,1740837039755,-536.47986357,0.00027671,2]
[354943056,1740837039764,-500.0,0.00027671,2]
[354943057,1740837039774,-500.0,0.00027671,2]
[354943058,1740837039784,-539.98,0.00027671,2]
[354943059,1740837039794,-782.19,0.00027671,2]
[354943060,1740837039803,-222.8057512,0.00027671,2]
[354943061,1740837039813,-917.93,0.00027671,2]
[354943062,1740837039822,-500.0,0.00027671,2]
[354943063,1740837039832,-500.0,0.00027671,2]
[354943064,1740837039843,-181.4,0.00027671,2]
[354943065,1740837039853,-464.25434768,0.00027671,2]
[354943066,1740837039862,-500.0,0.00027671,2]
[354943067,1740837039872,-1191.18,0.00027671,2]
[354943069,1740837039881,-724.82,0.00027671,2]
[354943070,1740837039891,-671.53,0.00027671,2]
[354943071,1740837039901,-1012.47,0.00027671,2]
[354943072,1740837039910,-524.80523579,0.00027671,2]
[354943073,1740837039920,-1017.64,0.00027671,2]
[354943074,1740837039930,-647.88,0.00027671,2]
[354943075,1740837039940,-500.0,0.00027671,2]
[354943076,1740837039949,-637.41,0.00027671,2]
[354943077,1740837039959,-734.74,0.00027671,2]
[354943078,1740837039969,-642.54,0.00027671,2]
[354943079,1740837039979,-805.43,0.00027671,2]
[354943080,1740837039989,-900.41,0.00027671,2]
[354943081,1740837039998,-648.53,0.00027671,2]
[354943082,1740837040007,-1617.72,0.00027671,2]
[354943083,1740837040017,-505.00137914,0.00027671,2]
[354943084,1740837040027,-500.0,0.00027671,2]
[354943086,1740837040038,-500.0,0.00027671,2]
[354943088,1740837040049,-1625.19,0.00027671,2]
[354943090,1740837040059,-500.0,0.00027671,2]
[354943092,1740837040070,-1394.85,0.00027671,2]
[354943094,1740837040081,-500.0,0.00027671,2]
[354943096,1740837040095,-904.17,0.00027671,2]
[354943098,1740837040105,-554.2,0.00027671,2]
[354943099,1740837040115,-391.20616327,0.00027671,2]
[354943100,1740837040124,-701.19,0.00027671,2]
[354943101,1740837040134,-562.25,0.00027671,2]
[354943103,1740837040144,-640.09,0.00027671,2]
[354943105,1740837040155,-954.08,0.00027671,2]
[354943107,1740837040164,-777.39,0.00027671,2]
[354943109,1740837040174,-1504.39,0.00027671,2]
[354943111,1740837040183,-665.74,0.00027671,2]
[354943113,1740837040193,-943.65,0.00027671,2]
[354943115,1740837040205,-500.0,0.00027671,2]
[354943116,1740837040214,-1320.3,0.00027671,2]
[354943118,1740837040223,-500.0,0.00027671,2]
[354943119,1740837040232,-1113.65,0.00027671,2]
[354943120,1740837040243,-500.0,0.00027671,2]
[354943121,1740837040252,-500.0,0.00027671,2]
[354943122,1740837040261,-878.92,0.00027671,2]
[354943123,1740837040270,-548.22,0.00027671,2]
[354943124,1740837040281,-815.6,0.00027671,2]
[354943125,1740837040291,-653.53,0.00027671,2]
[354943126,1740837040301,-758.97,0.00027671,2]
[354943127,1740837040311,-1411.85,0.00027671,2]
[354943128,1740837040320,-605.97460743,0.00027671,2]
[354943129,1740837040330,-615.74,0.00027671,2]
[354943130,1740837040340,-500.0,0.00027671,2]
[354943131,1740837040350,-577.05,0.00027671,2]
[354943132,1740837040360,-953.91,0.00027671,2]
[354943133,1740837040369,-479.1933218,0.00027671,2]
[354943134,1740837040379,-1747.69,0.00027671,2]
[354943135,1740837040388,-774.09,0.00027671,2]
[354943136,1740837040398,-500.0,0.00027671,2]
[354943137,1740837040408,-685.66,0.00027671,2]
[354943138,1740837040417,-845.62,0.00027671,2]
[354943139,1740837040426,-500.0,0.00027671,2]
[354943140,1740837040436,-837.08,0.00027671,2]
[354943141,1740837040446,-617.29,0.00027671,2]
[354943142,1740837040455,-500.0,0.00027671,2]
[354943143,1740837040464,-1238.11,0.00027671,2]
[354943144,1740837040474,-500.0,0.00027671,2]
[354943145,1740837040483,-1093.43,0.00027671,2]
[354943146,1740837040492,-1577.09,0.00027671,2]
[354943147,1740837040502,-977.39,0.00027671,2]
[354943148,1740837040511,-500.0,0.00027671,2]
[354943149,1740837040520,-500.0,0.00027671,2]
[354943150,1740837040530,-891.54,0.00027671,2]
[354943151,1740837040540,-500.0,0.00027671,2]
[354943152,1740837040550,-1584.23,0.00027671,2]
[354943153,1740837040560,-540.68,0.00027671,2]
[354943154,1740837040569,-579.59,0.00027671,2]
[354943155,1740837040579,-1172.77,0.00027671,2]
[354943156,1740837040590,-615.76,0.00027671,2]
[354943157,1740837040599,-500.0,0.00027671,2]
[354943158,1740837040609,-500.0,0.00027671,2]
[354943159,1740837040618,-500.0,0.00027671,2]
[354943160,1740837040627,-1404.18,0.00027671,2]
[354943161,1740837040638,-500.0,0.00027671,2]
[354943162,1740837040648,-500.0,0.00027671,2]
[354943163,1740837040658,-500.0,0.00027671,2]
[354943164,1740837040668,-500.0,0.00027671,2]
[354943165,1740837040679,-684.21,0.00027671,2]
[354943166,1740837040689,-1033.21,0.00027671,2]
[354943167,1740837040700,-500.0,0.00027671,2]
[354943168,1740837040710,-756.22,0.00027671,2]
[354943169,1740837040720,-945.3,0.00027671,2]
[354943170,1740837040730,-500.0,0.00027671,2]
[354943171,1740837040740,-915.62,0.00027671,2]
[354943172,1740837040749,-799.28,0.00027671,2]
[354943173,1740837040759,-726.15,0.00027671,2]
[354943174,1740837040768,-662.56,0.00027671,2]
[354943175,1740837040778,-500.0,0.00027671,2]
[354943176,1740837040788,-982.39,0.00027671,2]
[354943177,1740837040797,-500.0,0.00027671,2]
[354943178,1740837040807,-500.0,0.00027671,2]
[354943179,1740837040816,-1123.44,0.00027671,2]
[354943180,1740837040826,-1701.93,0.00027671,2]
[354943181,1740837040837,-917.29,0.00027671,2]
[354943182,1740837040847,-1219.95,0.00027671,2]
[354943183,1740837040857,-1427.71,0.00027671,2]
[354943184,1740837040866,-500.0,0.00027671,2]
[354943185,1740837040875,-636.65491862,0.00027671,2]
[354943186,1740837040885,-714.44,0.00027671,2]
[354943187,1740837040894,-500.0,0.00027671,2]
[354943188,1740837040903,-1098.58,0.00027671,2]
[354943189,1740837040913,-500.0,0.00027671,2]
[354943190,1740837040923,-500.0,0.00027671,2]
[354943191,1740837040932,-500.0,0.00027671,2]
[354943192,1740837040942,-500.0,0.00027671,2]
[354943193,1740837040951,-500.0,0.00027671,2]
[354943194,1740837040961,-500.0,0.00027671,2]